[Event "Polish Youth G16 Championship 2023"]
[Site "Jastrzebia Gora"]
[Date "2023.03.12"]
[Round "1.8"]
[White "Bar, Klaudia"]
[Black "Bauer, Maja"]
[Result "1-0"]
[ECO "B76"]
[WhiteElo "1731"]
[BlackElo "1383"]
[Annotator "NA RC COMBH"]
[PlyCount "93"]
[EventDate "2023.03.11"]
[EventType "swiss"]
[EventCountry "POL"]
[SourceTitle "playchess.com"]
[Source "ChessBase"]
[SourceQuality "1"]
[TimeControl "40/5400+30:1800+30"]

1. e4 c5 {[%emt 0:00:10]} 2. Nf3 {[%emt 0:00:06]} d6 {[%emt 0:00:06]} 3. d4 {[%emt 0:00:09]} cxd4 {[%emt 0:00:09]} 4. Nxd4 {[%emt 0:00:06]} Nf6 {[%emt 0:00:09]} 5. Nc3 {[%emt 0:00:05]} g6 {[%emt 0:00:26]} 6. Be3 {[%emt 0:00:27]} Bg7 {[%emt 0:00:48]} 7. f3 {[%emt 0:00:14]} Nc6 {[%emt 0:01:41]} 8. Qd2 {[%emt 0:00:11]} O-O {[%emt 0:01:39]} 9. O-O-O {[%emt 0:00:12]} d5 {[%emt 0:06:10]} 10. Nxc6 {[%emt 0:00:24]} bxc6 {[%emt 0:00:09]} 11. Bh6 {[%emt 0:00:07]} Be6 {[%emt 0:10:56]} 12. Bxg7 {[%emt 0:00:44]} Kxg7 {[%emt 0:00:09]} 13. h4 {[%emt 0:01:33]} h5 {[%emt 0:07:02]} 14. Qg5 {[%emt 0:10:31]} Qb6 {[%emt 0:06:40]} 15. g4 {[%emt 0:06:39]} Rh8 {[%emt 0:08:54]} 16. e5 {[%emt 0:06:19]} Nd7 {[%emt 0:00:30]} 17. Bd3 {[%emt 0:03:57]} Qb4 {[%emt 0:18:47]} 18. a3 {[%emt 0:19:40]} Qc5 {[%emt 0:02:42]} 19. Ne2 {[%emt 0:37:57]} d4 {[%emt 0:20:54]} 20. Nf4 {[%emt 0:03:44]} Qxe5 {[%emt 0:03:14]} 21. Nxh5+ {[%emt 0:00:45]} Kf8 {[%emt 0:03:24]} 22. Nf4 {[%emt 0:01:54]} Qxg5 {[%emt 0:01:26]} 23. hxg5 {[%emt 0:00:05]} Rxh1 {[%emt 0:01:15]} 24. Rxh1 {[%emt 0:00:01]} Kg7 {[%emt 0:00:13]} 25. Bxg6 {[%emt 0:01:29]} fxg6 {[%emt 0:01:55]} 26. Nxe6+ {[%emt 0:00:33]} Kg8 {[%emt 0:00:24]} 27. Nxd4 {[%emt 0:00:13]} c5 {[%emt 0:00:35]} 28. Ne6 {[%emt 0:00:42]} Kf7 {[%emt 0:01:52]} 29. Nc7 {[%emt 0:02:15]} Rc8 {[%emt 0:00:47]} 30. Nd5 {[%emt 0:01:30]} Ne5 31. Rh7+ Ke6 {[%emt 0:02:04]} 32. Nf4+ {[%emt 0:00:56]} Kd7 {[%emt 0:00:38]} 33. Rg7 {[%emt 0:01:00]} Rh8 {[%emt 0:00:37]} 34. b3 {[%emt 0:00:54]} Rh1+ {[%emt 0:00:21]} 35. Kb2 {[%emt 0:00:00]} Nxf3 {[%emt 0:00:29]} 36. Nxg6 {[%emt 0:00:04]} Re1 {[%emt 0:00:30]} 37. Nf4 {[%emt 0:01:13]} Re4 {[%emt 0:00:25]} 38. Nh5 {[%emt 0:02:08]} Kd8 {[%emt 0:00:44]} 39. Rg8+ {[%emt 0:00:08]} Kd7 {[%emt 0:00:16]} 40. g6 {[%emt 0:00:00]} Rxg4 {[%emt 0:00:00]} 41. g7 {[%emt 0:00:31]} Ke6 {[%emt 0:01:08]} 42. Rf8 {[%emt 0:00:09]} Kd5 {[%emt 0:01:52]} 43. g8=Q+ {[%emt 0:00:22]} Rxg8 {[%emt 0:00:06]} 44. Rxg8 {[%emt 0:00:04]} e5 {[%emt 0:00:11]} 45. Nf6+ {[%emt 0:00:25]} Kd4 {[%emt 0:00:09]} 46. Rd8+ {[%emt 0:00:29]} Ke3 {[%emt 0:00:06]} 47. Kc3 {[%emt 0:00:13]} 1-0

[Event "Polish Youth G16 Championship 2023"]
[Site "Jastrzebia Gora"]
[Date "2023.03.12"]
[Round "1.9"]
[White "Sliwicka, Weronika"]
[Black "Tokarz, Izabela"]
[Result "0-1"]
[ECO "B43"]
[WhiteElo "1374"]
[BlackElo "1725"]
[Annotator "NA RC COMBH"]
[PlyCount "52"]
[EventDate "2023.03.11"]
[EventType "swiss"]
[EventCountry "POL"]
[SourceTitle "playchess.com"]
[Source "ChessBase"]
[SourceQuality "1"]
[TimeControl "40/5400+30:1800+30"]

1. e4 {[%emt 0:00:02]} c5 {[%emt 0:00:05]} 2. Nf3 {[%emt 0:00:05]} e6 {[%emt 0:00:03]} 3. d4 {[%emt 0:00:12]} cxd4 {[%emt 0:00:03]} 4. Nxd4 {[%emt 0:00:04]} a6 {[%emt 0:00:05]} 5. Nc3 {[%emt 0:01:08]} b5 {[%emt 0:00:14]} 6. a3 {[%emt 0:00:10]} Qc7 {[%emt 0:01:37]} 7. Be3 {[%emt 0:02:54]} Bb7 {[%emt 0:01:38]} 8. Qd2 {[%emt 0:19:51]} Nf6 {[%emt 0:01:07]} 9. f3 {[%emt 0:02:14]} Be7 {[%emt 0:02:59]} 10. Bg5 {[%emt 0:10:39]} O-O {[%emt 0:04:44]} 11. O-O-O {[%emt 0:01:25]} Nc6 {[%emt 0:02:27]} 12. Nb3 {[%emt 0:07:08]} b4 {[%emt 0:03:55]} 13. axb4 {[%emt 0:01:11]} Nxb4 {[%emt 0:01:55]} 14. Kb1 {[%emt 0:07:31]} d5 {[%emt 0:03:24]} 15. exd5 {[%emt 0:03:44]} Nfxd5 {[%emt 0:05:54]} 16. Nxd5 {[%emt 0:01:56]} Bxd5 {[%emt 0:03:37]} 17. Bxe7 {[%emt 0:01:14]} Qxe7 {[%emt 0:00:02]} 18. c4 {[%emt 0:02:33]} Bc6 {[%emt 0:00:10]} 19. Na5 {[%emt 0:07:38]} Rad8 {[%emt 0:06:49]} 20. Nxc6 {[%emt 0:02:51]} Nxc6 {[%emt 0:00:01]} 21. Bd3 {[%emt 0:00:54]} Nb4 {[%emt 0:04:42]} 22. Qe2 {[%emt 0:01:14]} Qc5 {[%emt 0:01:45]} 23. Rhe1 {[%emt 0:05:34]} Qa5 {[%emt 0:00:44]} 24. b3 {[%emt 0:09:00]} Nxd3 {[%emt 0:00:12]} 25. Rxd3 {[%emt 0:00:20]} Rxd3 {[%emt 0:00:04]} 26. Qxd3 {[%emt 0:00:37]} Qxe1+ {[%emt 0:00:06]} 0-1

[Event "Polish Youth G16 Championship 2023"]
[Site "Jastrzebia Gora"]
[Date "2023.03.12"]
[Round "1.10"]
[White "Seemann, Pola"]
[Black "Gajec, Roza"]
[Result "1-0"]
[ECO "B34"]
[WhiteElo "1714"]
[BlackElo "1341"]
[Annotator "NA RC COMBH"]
[PlyCount "81"]
[EventDate "2023.03.11"]
[EventType "swiss"]
[EventCountry "POL"]
[SourceTitle "playchess.com"]
[Source "ChessBase"]
[SourceQuality "1"]
[TimeControl "40/5400+30:1800+30"]

1. e4 {[%emt 0:00:02]} c5 {[%emt 0:00:05]} 2. Nf3 {[%emt 0:00:05]} Nc6 {[%emt 0:00:06]} 3. d4 {[%emt 0:00:05]} cxd4 {[%emt 0:00:07]} 4. Nxd4 {[%emt 0:00:06]} Nf6 {[%emt 0:00:10]} 5. Nc3 {[%emt 0:00:06]} e5 {[%emt 0:00:08]} 6. Ndb5 {[%emt 0:00:04]} d6 {[%emt 0:00:09]} 7. Nd5 {[%emt 0:00:06]} Nxd5 {[%emt 0:00:10]} 8. exd5 {[%emt 0:00:07]} Ne7 {[%emt 0:00:05]} 9. c4 {[%emt 0:00:49]} Ng6 {[%emt 0:01:15]} 10. Qa4 {[%emt 0:00:35]} Bd7 {[%emt 0:00:21]} 11. Qb4 {[%emt 0:00:07]} Qb8 {[%emt 0:00:40]} 12. Be3 {[%emt 0:07:50]} a6 {[%emt 0:03:16]} 13. Nc3 {[%emt 0:00:23]} Be7 {[%emt 0:03:41]} 14. Na4 {[%emt 0:02:52]} Bd8 {[%emt 0:09:37]} 15. Nb6 {[%emt 0:02:31]} Bxb6 {[%emt 0:01:30]} 16. Bxb6 {[%emt 0:01:42]} O-O {[%emt 0:18:52]} 17. h4 {[%emt 0:10:03]} h5 {[%emt 0:02:19]} 18. Qa5 {[%emt 0:05:34]} Re8 {[%emt 0:16:38]} 19. Bc7 {[%emt 0:06:12]} Qc8 {[%emt 0:01:24]} 20. Bxd6 {[%emt 0:01:23]} e4 {[%emt 0:03:50]} 21. Qc7 {[%emt 0:04:04]} e3 {[%emt 0:07:27]} 22. Qxc8 {[%emt 0:08:47]} exf2+ {[%emt 0:01:03]} 23. Kxf2 {[%emt 0:00:09]} Raxc8 {[%emt 0:00:48]} 24. Bd3 {[%emt 0:03:26]} Ne5 {[%emt 0:02:40]} 25. Bxe5 {[%emt 0:00:05]} Rxe5 {[%emt 0:00:12]} 26. Rae1 {[%emt 0:00:42]} Rce8 {[%emt 0:03:30]} 27. Rxe5 {[%emt 0:02:58]} Rxe5 {[%emt 0:00:08]} 28. Re1 {[%emt 0:00:30]} Rxe1 {[%emt 0:01:35]} 29. Kxe1 {[%emt 0:00:06]} a5 {[%emt 0:06:03]} 30. Kd2 {[%emt 0:02:23]} Kf8 {[%emt 0:03:35]} 31. Ke3 {[%emt 0:01:41]} Ke7 {[%emt 0:02:13]} 32. c5 {[%emt 0:01:34]} Kf6 {[%emt 0:04:23]} 33. Kf4 {[%emt 0:00:09]} Ke7 {[%emt 0:02:39]} 34. d6+ {[%emt 0:01:44]} Kf6 {[%emt 0:01:19]} 35. Be4 {[%emt 0:00:44]} Bc8 {[%emt 0:02:52]} 36. a3 {[%emt 0:00:15]} g6 {[%emt 0:00:29]} 37. b4 {[%emt 0:00:12]} axb4 {[%emt 0:01:05]} 38. axb4 {[%emt 0:00:05]} Ke6 {[%emt 0:00:18]} 39. g3 {[%emt 0:02:34]} Kf6 {[%emt 0:00:23]} 40. Bd5 {[%emt 0:00:00]} Kg7 {[%emt 0:00:00]} 41. Bxb7 {[%emt 0:00:40]} 1-0

[Event "Polish Youth G16 Championship 2023"]
[Site "Jastrzebia Gora"]
[Date "2023.03.12"]
[Round "1.11"]
[White "Ekner, Maria"]
[Black "Szopa, Emilia"]
[Result "0-1"]
[ECO "E97"]
[WhiteElo "1337"]
[BlackElo "1709"]
[Annotator "NA RC COMBH"]
[PlyCount "66"]
[EventDate "2023.03.11"]
[EventType "swiss"]
[EventCountry "POL"]
[SourceTitle "playchess.com"]
[Source "ChessBase"]
[SourceQuality "1"]
[TimeControl "40/5400+30:1800+30"]

1. d4 {[%emt 0:00:02]} Nf6 {[%emt 0:00:33]} 2. c4 {[%emt 0:00:18]} g6 {[%emt 0:00:27]} 3. Nc3 {[%emt 0:00:34]} Bg7 {[%emt 0:00:28]} 4. e4 {[%emt 0:00:48]} d6 {[%emt 0:00:26]} 5. Nf3 {[%emt 0:00:39]} O-O {[%emt 0:02:01]} 6. Be2 {[%emt 0:00:47]} e5 {[%emt 0:00:38]} 7. O-O {[%emt 0:01:14]} Nc6 {[%emt 0:01:15]} 8. d5 {[%emt 0:01:12]} Ne7 {[%emt 0:00:53]} 9. b4 {[%emt 0:01:35]} a5 {[%emt 0:04:14]} 10. Ba3 {[%emt 0:02:08]} axb4 {[%emt 0:01:03]} 11. Bxb4 {[%emt 0:00:18]} Nd7 {[%emt 0:05:37]} 12. Re1 {[%emt 0:03:01]} h6 {[%emt 0:04:09]} 13. Bd3 {[%emt 0:07:48]} g5 {[%emt 0:13:18]} 14. Ne2 {[%emt 0:05:23]} Ng6 {[%emt 0:04:20]} 15. Ng3 {[%emt 0:04:33]} Re8 {[%emt 0:08:02]} 16. Nf5 {[%emt 0:03:11]} Bf8 {[%emt 0:00:12]} 17. Nd2 {[%emt 0:01:53]} Nb6 {[%emt 0:13:42]} 18. Qh5 {[%emt 0:04:55]} Nf4 {[%emt 0:06:57]} 19. Qf3 {[%emt 0:02:43]} c5 {[%emt 0:07:31]} 20. dxc6 {[%emt 0:03:52]} bxc6 {[%emt 0:02:30]} 21. g3 {[%emt 0:02:48]} Nxd3 {[%emt 0:03:09]} 22. Qxd3 {[%emt 0:00:23]} c5 {[%emt 0:04:25]} 23. Bc3 {[%emt 0:01:23]} Be6 {[%emt 0:01:14]} 24. Ne3 {[%emt 0:02:38]} Qf6 {[%emt 0:04:12]} 25. Nd5 {[%emt 0:02:14]} Nxd5 {[%emt 0:00:37]} 26. exd5 {[%emt 0:01:02]} Bh3 {[%emt 0:04:03]} 27. Re3 {[%emt 0:02:16]} Reb8 {[%emt 0:02:33]} 28. Rf3 {[%emt 0:01:31]} Qg6 {[%emt 0:01:28]} 29. Ne4 {[%emt 0:02:36]} f5 {[%emt 0:01:10]} 30. Nd2 {[%emt 0:02:59]} e4 {[%emt 0:00:14]} 31. Nxe4 {[%emt 0:00:13]} fxe4 {[%emt 0:00:48]} 32. Rf6 {[%emt 0:00:08]} Qxf6 {[%emt 0:00:33]} 33. Bxf6 {[%emt 0:00:16]} exd3 {[%emt 0:00:08]} 0-1

[Event "Polish Youth G16 Championship 2023"]
[Site "Jastrzebia Gora"]
[Date "2023.03.12"]
[Round "1.12"]
[White "Salamon, Julia"]
[Black "Krzysztynska, Maria"]
[Result "1-0"]
[ECO "E21"]
[WhiteElo "1701"]
[BlackElo "1335"]
[Annotator "NA RC COMBH"]
[PlyCount "107"]
[EventDate "2023.03.11"]
[EventType "swiss"]
[EventCountry "POL"]
[SourceTitle "playchess.com"]
[Source "ChessBase"]
[SourceQuality "1"]
[TimeControl "40/5400+30:1800+30"]

1. d4 {[%emt 0:00:01]} Nf6 {[%emt 0:01:59]} 2. c4 {[%emt 0:00:06]} e6 {[%emt 0:02:50]} 3. Nc3 {[%emt 0:00:06]} Bb4 {[%emt 0:03:51]} 4. Nf3 {[%emt 0:06:06]} b6 {[%emt 0:20:17]} 5. e3 {[%emt 0:00:57]} Bb7 {[%emt 0:02:58]} 6. Bd3 {[%emt 0:04:08]} c5 {[%emt 0:10:09]} 7. O-O {[%emt 0:09:25]} Bxc3 {[%emt 0:01:57]} 8. bxc3 {[%emt 0:00:11]} d6 {[%emt 0:01:36]} 9. Re1 {[%emt 0:12:43]} Ne4 {[%emt 0:05:00]} 10. Nd2 {[%emt 0:07:10]} f5 11. Bxe4 {[%emt 0:01:43]} fxe4 {[%emt 0:12:52]} 12. Qg4 {[%emt 0:00:21]} Qf6 {[%emt 0:03:45]} 13. Nxe4 {[%emt 0:09:00]} Bxe4 {[%emt 0:00:23]} 14. Qxe4 {[%emt 0:00:04]} O-O {[%emt 0:00:35]} 15. Rf1 {[%emt 0:08:14]} Nd7 {[%emt 0:00:40]} 16. Qg4 {[%emt 0:07:41]} Rf7 {[%emt 0:02:51]} 17. Bd2 {[%emt 0:02:29]} Raf8 {[%emt 0:03:08]} 18. f4 {[%emt 0:02:08]} e5 {[%emt 0:05:13]} 19. d5 {[%emt 0:01:04]} Qe7 {[%emt 0:05:04]} 20. Qe6 {[%emt 0:06:47]} Re8 {[%emt 0:01:46]} 21. Qxe7 {[%emt 0:02:19]} Rexe7 {[%emt 0:02:22]} 22. Rae1 {[%emt 0:01:12]} Nf6 {[%emt 0:03:11]} 23. e4 {[%emt 0:02:20]} Re8 {[%emt 0:04:51]} 24. f5 {[%emt 0:00:24]} h6 {[%emt 0:00:29]} 25. Rf3 {[%emt 0:01:05]} Kh7 {[%emt 0:00:48]} 26. Rg3 {[%emt 0:01:58]} a6 {[%emt 0:01:32]} 27. a4 {[%emt 0:07:02]} Rb8 {[%emt 0:00:51]} 28. Rg6 {[%emt 0:01:08]} b5 {[%emt 0:01:01]} 29. axb5 {[%emt 0:02:49]} axb5 {[%emt 0:00:08]} 30. g4 {[%emt 0:02:35]} bxc4 {[%emt 0:00:37]} 31. g5 {[%emt 0:00:03]} hxg5 {[%emt 0:00:26]} 32. Bxg5 {[%emt 0:00:03]} Nxe4 {[%emt 0:01:55]} 33. Rxe4 {[%emt 0:01:20]} Rxf5 {[%emt 0:00:07]} 34. Rxd6 {[%emt 0:00:18]} Rxg5+ {[%emt 0:01:14]} 35. Kf2 {[%emt 0:00:15]} Rf8+ {[%emt 0:00:32]} 36. Ke3 {[%emt 0:00:08]} Rg1 {[%emt 0:00:37]} 37. Rxc4 {[%emt 0:00:48]} Rff1 {[%emt 0:00:45]} 38. Rh4+ {[%emt 0:01:55]} Kg8 {[%emt 0:00:09]} 39. Re6 {[%emt 0:00:56]} Re1+ {[%emt 0:00:50]} 40. Kd3 {[%emt 0:00:00]} Kf7 {[%emt 0:00:00]} 41. Rh5 {[%emt 0:11:43]} Rg4 {[%emt 0:14:01]} 42. Rf5+ {[%emt 0:02:48]} Kg8 {[%emt 0:00:54]} 43. Rfxe5 {[%emt 0:00:09]} c4+ {[%emt 0:00:33]} 44. Kd2 {[%emt 0:00:13]} Ra1 {[%emt 0:03:32]} 45. d6 {[%emt 0:01:02]} Rgg1 {[%emt 0:04:41]} 46. Re4 {[%emt 0:03:17]} Ra2+ {[%emt 0:06:16]} 47. Ke3 {[%emt 0:00:15]} Re1+ {[%emt 0:01:00]} 48. Kd4 {[%emt 0:00:33]} Rd2+ {[%emt 0:01:45]} 49. Kc5 {[%emt 0:00:06]} Rxe4 {[%emt 0:00:47]} 50. Rxe4 {[%emt 0:00:04]} Rxh2 {[%emt 0:00:37]} 51. Rd4 {[%emt 0:00:12]} Kf7 {[%emt 0:01:51]} 52. d7 {[%emt 0:00:07]} Rh8 {[%emt 0:00:30]} 53. d8=Q {[%emt 0:00:07]} Rxd8 {[%emt 0:00:11]} 54. Rxd8 {[%emt 0:00:03]} 1-0

[Event "Polish Youth G16 Championship 2023"]
[Site "Jastrzebia Gora"]
[Date "2023.03.12"]
[Round "1.13"]
[White "Kaczmarek, Paulina"]
[Black "Zapalowska, Wiktoria"]
[Result "0-1"]
[ECO "B47"]
[WhiteElo "1317"]
[BlackElo "1639"]
[Annotator "NA RC COMBH"]
[PlyCount "108"]
[EventDate "2023.03.11"]
[EventType "swiss"]
[EventCountry "POL"]
[SourceTitle "playchess.com"]
[Source "ChessBase"]
[SourceQuality "1"]
[TimeControl "40/5400+30:1800+30"]

1. e4 {[%emt 0:00:02]} c5 {[%emt 0:00:22]} 2. Nf3 {[%emt 0:00:09]} e6 {[%emt 0:00:28]} 3. d4 {[%emt 0:00:17]} cxd4 {[%emt 0:00:22]} 4. Nxd4 {[%emt 0:00:04]} Nc6 {[%emt 0:00:26]} 5. Nc3 {[%emt 0:00:20]} Qc7 {[%emt 0:00:39]} 6. Ndb5 {[%emt 0:01:54]} Qb8 {[%emt 0:00:51]} 7. Be3 {[%emt 0:01:38]} a6 {[%emt 0:00:56]} 8. Nd4 {[%emt 0:00:15]} Nf6 {[%emt 0:01:38]} 9. Be2 {[%emt 0:05:44]} Bb4 {[%emt 0:03:35]} 10. f3 {[%emt 0:04:14]} d5 {[%emt 0:05:00]} 11. Nxc6 {[%emt 0:06:56]} bxc6 {[%emt 0:05:01]} 12. Bd2 {[%emt 0:06:31]} dxe4 {[%emt 0:15:15]} 13. fxe4 {[%emt 0:07:21]} Qe5 {[%emt 0:05:06]} 14. Bd3 {[%emt 0:04:37]} h5 {[%emt 0:05:45]} 15. Qf3 {[%emt 0:04:05]} Bd7 {[%emt 0:04:08]} 16. O-O {[%emt 0:14:30]} O-O {[%emt 0:07:38]} 17. h3 {[%emt 0:11:20]} Bc5+ {[%emt 0:04:38]} 18. Be3 {[%emt 0:02:40]} Bxe3+ {[%emt 0:00:29]} 19. Qxe3 {[%emt 0:00:01]} c5 {[%emt 0:02:15]} 20. Qf4 {[%emt 0:07:33]} Qd4+ {[%emt 0:01:47]} 21. Qf2 {[%emt 0:00:20]} e5 {[%emt 0:08:53]} 22. Qxd4 {[%emt 0:01:03]} exd4 {[%emt 0:01:51]} 23. Ne2 {[%emt 0:04:18]} Rfe8 {[%emt 0:00:31]} 24. Ng3 {[%emt 0:00:29]} h4 {[%emt 0:00:21]} 25. Nf5 {[%emt 0:00:34]} Nxe4 {[%emt 0:01:35]} 26. Nxh4 {[%emt 0:01:24]} Nd6 {[%emt 0:01:05]} 27. Rfe1 {[%emt 0:00:24]} Bb5 {[%emt 0:04:51]} 28. Bxb5 {[%emt 0:05:16]} axb5 {[%emt 0:00:30]} 29. Rxe8+ {[%emt 0:00:45]} Rxe8 {[%emt 0:00:22]} 30. Kf1 {[%emt 0:00:24]} Nc4 {[%emt 0:00:10]} 31. Kf2 {[%emt 0:03:35]} Ra8 {[%emt 0:02:48]} 32. Nf5 {[%emt 0:03:23]} Nxb2 {[%emt 0:01:34]} 33. Nd6 {[%emt 0:00:29]} b4 {[%emt 0:00:25]} 34. Ke2 {[%emt 0:00:15]} Ra3 {[%emt 0:01:37]} 35. Nb5 {[%emt 0:01:26]} Re3+ {[%emt 0:00:34]} 36. Kf2 {[%emt 0:00:14]} Nc4 {[%emt 0:02:53]} 37. Re1 {[%emt 0:01:07]} Kf8 {[%emt 0:00:32]} 38. g3 {[%emt 0:00:29]} Ke7 {[%emt 0:02:01]} 39. Re2 {[%emt 0:01:05]} Kd7 {[%emt 0:00:43]} 40. c3 {[%emt 0:00:00]} Rxe2+ {[%emt 0:00:00]} 41. Kxe2 {[%emt 0:02:06]} dxc3 {[%emt 0:01:03]} 42. Kd3 {[%emt 0:01:14]} Kc6 {[%emt 0:01:02]} 43. Nxc3 {[%emt 0:01:35]} bxc3 {[%emt 0:00:07]} 44. Kxc3 {[%emt 0:00:04]} Ne5 {[%emt 0:00:52]} 45. a4 {[%emt 0:00:30]} f5 {[%emt 0:00:24]} 46. h4 {[%emt 0:00:16]} Kb6 {[%emt 0:00:45]} 47. h5 {[%emt 0:00:27]} Ka5 {[%emt 0:00:11]} 48. Kb3 {[%emt 0:00:06]} c4+ {[%emt 0:00:14]} 49. Ka3 {[%emt 0:00:02]} Nd7 {[%emt 0:00:33]} 50. Kb2 {[%emt 0:00:31]} Kxa4 {[%emt 0:00:08]} 51. Kc3 {[%emt 0:00:00]} Kb5 {[%emt 0:00:08]} 52. Kc2 {[%emt 0:00:00]} Kb4 53. Kb2 Nc5 {[%emt 0:00:15]} 54. Kc2 {[%emt 0:00:22]} c3 {[%emt 0:00:06]} 0-1

[Event "Polish Youth G16 Championship 2023"]
[Site "Jastrzebia Gora"]
[Date "2023.03.12"]
[Round "1.14"]
[White "Lazniewska, Zofia"]
[Black "Zgoda, Aleksandra"]
[Result "1-0"]
[ECO "B19"]
[WhiteElo "1621"]
[BlackElo "1308"]
[Annotator "NA RC COMBH"]
[PlyCount "101"]
[EventDate "2023.03.11"]
[EventType "swiss"]
[EventCountry "POL"]
[SourceTitle "playchess.com"]
[Source "ChessBase"]
[SourceQuality "1"]
[TimeControl "40/5400+30:1800+30"]

1. e4 {[%emt 0:00:01]} c6 {[%emt 0:00:11]} 2. d4 {[%emt 0:00:04]} d5 {[%emt 0:00:09]} 3. Nc3 {[%emt 0:00:04]} dxe4 {[%emt 0:00:21]} 4. Nxe4 {[%emt 0:00:08]} Bf5 {[%emt 0:00:23]} 5. Ng3 {[%emt 0:00:06]} Bg6 {[%emt 0:00:19]} 6. h4 {[%emt 0:00:07]} h6 {[%emt 0:00:34]} 7. Nf3 {[%emt 0:00:05]} Nd7 {[%emt 0:00:57]} 8. h5 {[%emt 0:00:05]} Bh7 {[%emt 0:00:40]} 9. Bd3 {[%emt 0:00:09]} Bxd3 {[%emt 0:00:52]} 10. Qxd3 {[%emt 0:00:04]} Ngf6 {[%emt 0:02:31]} 11. Bd2 {[%emt 0:02:02]} Qc7 {[%emt 0:01:45]} 12. O-O-O {[%emt 0:00:57]} e6 {[%emt 0:02:46]} 13. Ne4 {[%emt 0:01:01]} O-O-O {[%emt 0:02:53]} 14. g3 {[%emt 0:00:37]} Nxe4 {[%emt 0:03:55]} 15. Qxe4 {[%emt 0:00:07]} Nf6 {[%emt 0:00:15]} 16. Qe2 {[%emt 0:00:37]} Bd6 {[%emt 0:05:49]} 17. Kb1 {[%emt 0:00:34]} c5 {[%emt 0:08:26]} 18. c4 {[%emt 0:14:00]} Kb8 {[%emt 0:15:15]} 19. Bc3 {[%emt 0:03:36]} Ka8 {[%emt 0:09:46]} 20. Ne5 {[%emt 0:17:27]} Rc8 {[%emt 0:07:38]} 21. dxc5 {[%emt 0:06:42]} Bxc5 {[%emt 0:06:10]} 22. f4 {[%emt 0:06:55]} Rhd8 {[%emt 0:06:35]} 23. g4 {[%emt 0:07:47]} Qe7 {[%emt 0:05:17]} 24. Ba5 {[%emt 0:07:11]} Rd6 {[%emt 0:05:40]} 25. Rxd6 {[%emt 0:06:41]} Bxd6 {[%emt 0:00:11]} 26. Rd1 {[%emt 0:02:12]} Bxe5 {[%emt 0:04:16]} 27. fxe5 {[%emt 0:02:50]} Nd7 {[%emt 0:01:22]} 28. a3 {[%emt 0:11:58]} Nc5 {[%emt 0:03:31]} 29. Bb4 {[%emt 0:00:28]} a6 {[%emt 0:01:01]} 30. Qe3 {[%emt 0:01:06]} Qc7 {[%emt 0:00:42]} 31. Rf1 {[%emt 0:03:04]} Nd7 {[%emt 0:03:38]} 32. Rxf7 {[%emt 0:00:39]} Qxe5 {[%emt 0:00:09]} 33. Qf3 {[%emt 0:02:42]} Qd4 {[%emt 0:02:06]} 34. Bc3 {[%emt 0:00:24]} Qd6 {[%emt 0:00:24]} 35. Rxg7 {[%emt 0:01:22]} Rxc4 {[%emt 0:00:34]} 36. Qe2 {[%emt 0:02:02]} Qd5 37. Rxd7 Qxd7 {[%emt 0:01:24]} 38. Qxc4 {[%emt 0:00:24]} Kb8 {[%emt 0:00:33]} 39. Bd4 {[%emt 0:00:30]} Qe7 {[%emt 0:00:31]} 40. Be5+ {[%emt 0:00:00]} Ka7 {[%emt 0:00:00]} 41. Qc7 {[%emt 0:01:27]} Qf8 {[%emt 0:04:00]} 42. Bd4+ {[%emt 0:00:35]} Ka8 {[%emt 0:00:20]} 43. Qc5 {[%emt 0:00:44]} Qf1+ {[%emt 0:01:54]} 44. Ka2 {[%emt 0:00:07]} Kb8 {[%emt 0:01:25]} 45. Be5+ {[%emt 0:01:21]} Ka8 {[%emt 0:00:11]} 46. Qc8+ {[%emt 0:00:13]} Ka7 {[%emt 0:00:07]} 47. Bd4+ {[%emt 0:00:13]} b6 {[%emt 0:00:14]} 48. Qc7+ {[%emt 0:00:08]} Ka8 {[%emt 0:00:12]} 49. Qc6+ {[%emt 0:00:09]} Kb8 {[%emt 0:00:56]} 50. Be5+ {[%emt 0:00:07]} Ka7 {[%emt 0:00:09]} 51. Qc7+ {[%emt 0:00:09]} 1-0

[Event "Polish Youth G16 Championship 2023"]
[Site "Jastrzebia Gora"]
[Date "2023.03.12"]
[Round "1.15"]
[White "Idzior, Izabela"]
[Black "Zielinska, Aleksandra"]
[Result "0-1"]
[ECO "B43"]
[WhiteElo "1287"]
[BlackElo "1613"]
[Annotator "NA RC COMBH"]
[PlyCount "72"]
[EventDate "2023.03.11"]
[EventType "swiss"]
[EventCountry "POL"]
[SourceTitle "playchess.com"]
[Source "ChessBase"]
[SourceQuality "1"]
[TimeControl "40/5400+30:1800+30"]

1. e4 {[%emt 0:00:03]} c5 {[%emt 0:00:06]} 2. Nf3 {[%emt 0:00:05]} e6 {[%emt 0:00:05]} 3. d4 {[%emt 0:00:07]} cxd4 {[%emt 0:00:07]} 4. Nxd4 {[%emt 0:00:06]} a6 {[%emt 0:00:06]} 5. Nc3 {[%emt 0:00:20]} b5 {[%emt 0:00:09]} 6. Be3 {[%emt 0:03:45]} Bb7 {[%emt 0:01:33]} 7. f3 {[%emt 0:00:31]} Qc7 {[%emt 0:02:07]} 8. Be2 {[%emt 0:16:48]} Nc6 {[%emt 0:01:35]} 9. O-O {[%emt 0:06:11]} Nf6 {[%emt 0:05:33]} 10. Rc1 {[%emt 0:14:10]} Be7 {[%emt 0:03:47]} 11. a3 {[%emt 0:03:04]} O-O {[%emt 0:04:12]} 12. Nxc6 {[%emt 0:00:51]} Bxc6 {[%emt 0:00:24]} 13. Qe1 {[%emt 0:04:56]} d5 {[%emt 0:06:59]} 14. exd5 {[%emt 0:01:59]} Nxd5 {[%emt 0:01:06]} 15. Nxd5 {[%emt 0:01:16]} Bxd5 {[%emt 0:00:17]} 16. b4 {[%emt 0:04:52]} Rac8 {[%emt 0:05:15]} 17. Bd3 {[%emt 0:00:33]} Bf6 {[%emt 0:08:46]} 18. Bc5 {[%emt 0:00:53]} Rfe8 {[%emt 0:02:19]} 19. c4 {[%emt 0:10:18]} bxc4 {[%emt 0:11:31]} 20. Bxc4 {[%emt 0:00:37]} Bxc4 {[%emt 0:01:48]} 21. Rxc4 {[%emt 0:00:07]} Red8 {[%emt 0:03:08]} 22. Qe2 {[%emt 0:01:41]} Qd7 {[%emt 0:06:40]} 23. Qc2 {[%emt 0:08:47]} Qd3 {[%emt 0:04:51]} 24. Qxd3 {[%emt 0:03:00]} Rxd3 {[%emt 0:00:07]} 25. a4 {[%emt 0:00:21]} Bb2 {[%emt 0:13:36]} 26. Re1 {[%emt 0:08:09]} a5 {[%emt 0:06:12]} 27. bxa5 {[%emt 0:05:16]} Rxc5 {[%emt 0:02:47]} 28. Rb4 {[%emt 0:01:36]} Bd4+ {[%emt 0:02:41]} 29. Kf1 {[%emt 0:00:10]} Rc8 {[%emt 0:00:07]} 30. Reb1 {[%emt 0:00:55]} Be5 {[%emt 0:01:27]} 31. Rb5 {[%emt 0:01:07]} Bxh2 {[%emt 0:01:29]} 32. a6 {[%emt 0:00:22]} Rdd8 {[%emt 0:01:08]} 33. a7 {[%emt 0:01:20]} Ra8 {[%emt 0:01:42]} 34. Rb7 {[%emt 0:00:26]} Be5 {[%emt 0:01:05]} 35. R1b4 {[%emt 0:00:52]} Bd4 {[%emt 0:01:17]} 36. Re7 {[%emt 0:01:47]} Bc5 {[%emt 0:00:54]} 0-1